fUSD/lending_fUSD_20250331
["ID","MTS","AMOUNT","RATE_DAILY","PERIOD"]
[356938082,1743448243829,-151.0,0.00048949,14]
[356938083,1743448243837,-251.0,0.00048949,14]
[356938084,1743448243847,-151.0,0.00048949,14]
[356938085,1743448243857,-18223.83800757,0.00048949,15]
[356938086,1743448243866,-150.0,0.00048955,7]
[356938087,1743448243875,-150.0,0.00048958,7]
[356938088,1743448243884,-150.0,0.00048963,7]
[356938089,1743448243893,-150.0,0.00048964,7]
[356938090,1743448243902,-177.32645606,0.0004898,4]
[356938091,1743448243911,-150.0,0.00048983,7]
[356938092,1743448243919,-151.0,0.0004899,14]
[356938093,1743448243929,-151.0,0.0004899,14]
[356938094,1743448243938,-301.98690645,0.0004899,14]
[356938095,1743448243947,-151.0,0.0004899,14]
[356938096,1743448243957,-151.729419,0.0004899,14]
[356938097,1743448243966,-519.130657,0.0004899,14]
[356938098,1743448243975,-519.130657,0.0004899,14]
[356938099,1743448243984,-151.0,0.0004899,14]
[356938100,1743448243994,-151.819665,0.0004899,14]
[356938101,1743448244003,-153.037359,0.0004899,14]
[356938102,1743448244012,-151.0,0.0004899,14]
[356938103,1743448244021,-151.0,0.0004899,14]
[356938104,1743448244030,-151.530146,0.0004899,14]
[356938105,1743448244039,-151.736392,0.0004899,14]
[356938106,1743448244048,-152.856327,0.0004899,14]
[356938107,1743448244057,-151.0,0.0004899,14]
[356938108,1743448244067,-152.537072,0.0004899,14]
[356938109,1743448244076,-243.214052,0.0004899,14]
[356938110,1743448244085,-151.0,0.0004899,14]
[356938111,1743448244094,-151.0,0.0004899,14]
[356938112,1743448244103,-531.97936818,0.0004899,4]
[356938113,1743448244112,-151.0,0.0004899,14]
[356938114,1743448244122,-245.0,0.0004899,14]
[356938115,1743448244131,-153.170088,0.0004899,14]
[356938116,1743448244140,-151.0,0.0004899,14]
[356938117,1743448244149,-151.0,0.0004899,14]
[356938118,1743448244158,-629.695497,0.0004899,14]
[356938119,1743448244167,-629.695497,0.0004899,14]
[356938120,1743448244177,-151.0,0.0004899,14]
[356938121,1743448244187,-163.969258,0.0004899,14]
[356938122,1743448244197,-151.27,0.0004899,120]
[356938123,1743448244206,-521.5,0.00048993,38]
[356938124,1743448244216,-312.94997787,0.00048999,30]
[356938125,1743448244226,-1513.0,0.00049,7]
[356938126,1743448244236,-55322.17200118,0.00049,7]
[356938127,1743448244275,-10792.47407275,0.00049,7]
[356938128,1743448244286,-7041.00100985,0.00049,7]
[356938129,1743448244298,-975.868857,0.00049,7]
[356938130,1743448244310,-7155.89828018,0.00049,7]
[356938131,1743448244322,-1806.49803386,0.00049,7]
[356938132,1743448244345,-6128.10690623,0.00049,7]
[356938133,1743448244356,-6660.35750267,0.00049,7]
[356938134,1743448244996,-435.50221154,0.00049,7]
[356938135,1743448245010,-2846.52978326,0.00049,7]
[356938136,1743448245024,-11292.47901661,0.00049,7]
[356938137,1743448245040,-743.04814621,0.00049,7]
[356938138,1743448245076,-294.14994472,0.00049,7]
[356938139,1743448245087,-698.384581,0.00049,7]
[356938140,1743448245099,-644.98480463,0.00049,7]
[356938141,1743448245781,-181.98095667,0.00049,7]
[356938144,1743448246278,-1316.65614488,0.00049,7]
[356938145,1743448246290,-1506.25410033,0.00049,7]
[356938146,1743448246330,-13395.73646024,0.00049,7]
[356938147,1743448246437,-1843.65503833,0.00049,7]
[356938148,1743448246449,-1518.67982264,0.00049,7]
[356938149,1743448264533,-171.04350908,0.00047432,4]
[356938150,1743448271878,-171.04350908,0.00047432,120]
[356938152,1743449057406,-158.8258547,0.000419,5]
[356938153,1743449088346,-150.79816727,0.000419,5]
[356938154,1743449134754,1162.27454695,0.00033805,120]
[356938155,1743449155694,236.40928702,0.0001489,2]
[356938156,1743449165658,1000.0,0.00033805,120]
[356938159,1743449261583,691.90377047,0.000149,2]
[356938162,1743449334420,14579.07040611,0.000149,2]
[356938163,1743449354150,-300.0,0.00014999,2]
[356938164,1743449354175,-2966.41787971,0.00015,2]
[356938183,1743449437481,-750.73795033,0.00015,2]
[356938184,1743449437536,-3932.26906566,0.00015,2]
[356938185,1743449437642,-696.909276,0.00015,2]
[356938187,1743449437697,-494.01,0.00015,2]
[356938188,1743449437713,-1950.67773013,0.00015,2]
[356938194,1743449439692,-2055.8996801,0.00015,2]
[356938195,1743449439803,-32675.22643819,0.00015,2]
[356938196,1743449440058,-5889.13383708,0.00015,2]
[356938325,1743449442573,-331.57649289,0.00015,2]
[356938326,1743449442611,-904.21075087,0.00015,2]
[356938327,1743449442668,-1457.86285409,0.00015,2]
[356938328,1743449442680,-276.29565446,0.00015,2]
[356938329,1743449442691,-709.00241687,0.00015,2]
[356938330,1743449442702,-455.37695136,0.00015,2]
[356938331,1743449443256,-3846.78455,0.00015,2]
[356938334,1743449445642,-71317.07660244,0.00015,2]
[356938335,1743449445652,-1969.08173621,0.00015,2]
[356938336,1743449445662,-7664.5922074,0.00015,2]
[356938337,1743449445672,-18226.03820844,0.00015,2]
[356938338,1743449445681,-422572.03237919,0.00015,2]
[356938341,1743449445945,-3589.90208822,0.00015,2]
[356938342,1743449445957,-912.943479,0.00015,2]
[356938343,1743449601656,500.0,0.00033805,120]
[356938344,1743449626278,500.0,0.00033805,120]
[356938345,1743449823948,151.0,0.00033805,30]
[356938346,1743449824605,156.587,0.00033805,30]
[356938347,1743449825260,162.380719,0.00033805,30]
[356938348,1743449826528,168.3888056,0.00033805,30]
[356938349,1743449827360,174.61919141,0.00033805,30]
[356938350,1743449827808,181.08010149,0.00033805,30]
[356938351,1743449828433,187.78006525,0.00033805,30]
[356938352,1743449829080,194.72792766,0.00033805,30]
[356938353,1743449829709,201.93286099,0.00033805,30]
[356938354,1743449830336,209.40437684,0.00033805,30]
[356938355,1743449831553,217.15233878,0.00033805,30]
[356938356,1743449832222,225.18697532,0.00033805,30]
[356938357,1743449832843,233.51889341,0.00033805,30]
[356938358,1743449833462,242.15909246,0.00033805,30]
[356938359,1743449834704,251.11897888,0.00033805,30]
[356938360,1743449835384,260.4103811,0.00033805,30]
[356938361,1743449836085,270.0455652,0.00033805,30]
[356938362,1743449836700,270.0455652,0.00033805,30]
[356938364,1743450111762,499.99,0.00033801,120]
[356938365,1743450123321,266.82632207,0.00033801,30]
[356938366,1743450204543,-150.0,0.00014999,2]
[356938367,1743450204570,-300.0,0.00014999,2]
[356938368,1743450204594,-150.0,0.00014999,2]
[356938369,1743450204619,-17146.39986249,0.00015,2]
[356938370,1743450231533,-27000.0,0.00015,2]
[356938371,1743450506229,-5428.514636,0.00014999,2]
[356938372,1743450506250,-150.0,0.00014999,2]
[356938373,1743450506271,-9421.485364,0.00015,2]
[356938374,1743450631677,-593.60558623,0.00014925,2]
[356938375,1743450631790,-1628.07084377,0.00014925,2]
[356938376,1743450631800,-70751.30803177,0.00015,2]
[356938377,1743450631890,-1035.42914134,0.00015,2]
[356938378,1743450631944,-20740.50000001,0.00015,2]
[356938512,1743450637679,-5965.79815524,0.00015,2]
[356938513,1743450637692,-1514.72294544,0.00015,2]
[356938514,1743450637732,-21391.12447295,0.00015,2]
[356938515,1743450637742,-150.0,0.00015256,2]
[356938516,1743450637752,-255.0,0.00016124,2]
[356938517,1743450637762,-150.0,0.00016499,2]
[356938518,1743450637772,-150.0,0.000165,2]
[356938519,1743450637781,-433.0,0.00017339,2]
[356938520,1743450637791,-331.0,0.00018629,2]
[356938521,1743450637801,-994.43,0.0002,2]
[356938522,1743450637811,-203.6918,0.00020244,2]
[356938523,1743450637820,-154.15,0.00026849,2]
[356938524,1743450637830,-530.669,0.00027717,17]
[356938525,1743450637840,-600.62,0.00033117,2]
[356938526,1743450637851,-1000.0,0.00034002,2]
[356938527,1743450637860,-314.08,0.0003471,2]
[356938528,1743450637870,-151.33,0.0003471,2]
[356938529,1743450637880,-4538.07399451,0.00035,40]
[356938530,1743450637890,-250.0,0.00035095,2]
[356938531,1743450637900,-600.62,0.00035381,2]
[356938532,1743450637909,-3742.95883676,0.000367,5]
[356938533,1743450637931,-731.04116324,0.000367,5]
[356938534,1743450637941,-600.62,0.00037645,2]
[356938535,1743450637951,-1000.0,0.00038252,2]
[356938536,1743450637960,-154.15,0.00039087,2]
[356938537,1743450637970,-600.62,0.00039909,2]
[356938538,1743450637980,-150.0,0.00040578,2]
[356938539,1743450637989,-23900.0,0.00041401,2]
[356938540,1743450637999,-13153.04957317,0.00041993,15]
[356938541,1743450638008,-157.01,0.00042093,120]
[356938542,1743450638018,-600.62,0.00042172,2]
[356938543,1743450638028,-157.73,0.0004237,120]
[356938544,1743450638038,-1000.0,0.00042502,2]
[356938545,1743450638047,-2000.0,0.00043494,8]
[356938546,1743450638057,-13153.0495731,0.00043543,15]
[356938547,1743450638066,-500.0,0.00043836,120]
[356938548,1743450638076,-562.33792296,0.00043836,120]
[356938549,1743450638085,-600.62,0.00044436,2]
[356938550,1743450638095,-2000.0,0.00044578,8]
[356938551,1743450638105,-5681.9520672,0.000449,15]
[356938552,1743450638115,-1117.0,0.00044967,2]
[356938553,1743450638125,-80000.0,0.00045,10]
[356938554,1743450638135,-500.0,0.00045,120]
[356938555,1743450638144,-13153.0495731,0.00045093,15]
[356938556,1743450638153,-61.45252464,0.00045662,8]
[356938632,1743450642946,-64.15210668,0.00045662,8]
[356938633,1743450642958,-1874.39536868,0.00045662,8]
[356938634,1743450642969,-5681.95206712,0.00046012,15]
[356938635,1743450642978,-13153.0495731,0.00046643,15]
[356938636,1743450642988,-600.62,0.000467,2]
[356938637,1743450642998,-2000.0,0.00046747,8]
[356938638,1743450643009,-1000.0,0.00046752,2]
[356938639,1743450643018,-5681.95206712,0.00047123,15]
[356938640,1743450643028,-504.35525356,0.00047276,10]
[356938641,1743450643038,-5781.06957457,0.000473,120]
[356938642,1743450643048,-408.8209531,0.00047355,4]
[356938643,1743450643058,-157.73,0.00047666,120]
[356938644,1743450643068,-2000.0,0.00047831,8]
[356938645,1743450643078,-500.0,0.00047973,120]
[356938646,1743450643087,-203.7370989,0.00047973,120]
[356938647,1743450643097,-13153.0495731,0.00048193,15]
[356938648,1743450643107,-5681.95206712,0.00048235,15]
[356938649,1743450643117,-530.67,0.00048288,83]
[356938650,1743450643127,-314.08,0.00048594,2]
[356938651,1743450643138,-441.97124356,0.0004889,21]
[356938652,1743450643148,-159.0,0.000489,58]
[356938653,1743450643158,-2000.0,0.00048916,8]
[356938654,1743450643169,-600.62,0.00048964,2]
[356938655,1743450643179,-151.0,0.0004899,14]
[356938656,1743450643189,-250.893084,0.0004899,14]
[356938657,1743450643198,-153.420997,0.0004899,14]
[356938658,1743450643207,-151.0,0.0004899,14]
[356938659,1743450643217,-151.0,0.0004899,14]
[356938660,1743450643227,-151.0,0.0004899,14]
[356938661,1743450643236,-151.416823,0.0004899,14]
[356938662,1743450643246,-467.217592,0.0004899,14]
[356938663,1743450643256,-467.217592,0.0004899,14]
[356938664,1743450643265,-151.0,0.0004899,14]
[356938665,1743450643275,-794.27475035,0.0004899,4]
[356938666,1743450643284,-151.27,0.0004899,120]
[356938667,1743450643293,-151.27,0.0004899,120]
[356938668,1743450643302,-18602.05521392,0.00049,5]
[356938669,1743450643312,-1806.0,0.00049,7]
[356938670,1743450643323,-85729.19364022,0.00049,7]
[356938671,1743450643335,-583.27535938,0.00049,7]
[356938672,1743450644190,-466.04883812,0.00049,7]
[356938676,1743450645637,-995.1989455,0.00049,7]
[356938677,1743450645875,-84064.35897171,0.00049,7]
[356938678,1743450645887,-4321.7258254,0.00049,7]
[356938679,1743450645898,-641.66500002,0.00049,7]
[356938734,1743451831847,-2021.72225195,0.000366,2]
[356938735,1743451831857,-150.0,0.00037515,2]
[356938736,1743451831867,-150.0,0.0004026,2]
[356938737,1743451831878,-150.0,0.00040554,2]
[356938738,1743451831888,-112.87774805,0.00045479,120]
[356938739,1743451831901,-387.12225195,0.00045479,120]
[356938740,1743451831913,-500.0,0.00046548,120]
[356938741,1743451831923,-306.6157148,0.00047495,4]
[356938742,1743451831933,-288.07,0.000475,120]
[356938743,1743451831942,-151.33,0.00047516,2]
[356938744,1743451831951,-157.73,0.0004754,120]
[356938745,1743451831961,-250.0,0.00047695,120]
[356938746,1743451831970,-1000.0,0.00047745,2]
[356938747,1743451831980,-376.84812692,0.00047853,2]
[356938748,1743451831991,-291.48025904,0.00047853,2]
[356938749,1743451832033,-1103.55713475,0.00047853,2]
[356938750,1743451832088,-493.93273537,0.00047853,2]
[356938751,1743451832100,-541.05884223,0.00047853,2]
[356938752,1743451832112,-21093.12290169,0.00047853,2]
[356938754,1743451832122,-500.0,0.0004794,120]
[356938756,1743451832131,-500.0,0.0004799,120]
[356938757,1743451832141,-213.59,0.00048,2]
[356938759,1743451832150,-456.2,0.00048041,30]
[356938761,1743451832159,-804.13,0.00048041,30]
[356938763,1743451832169,-217.695,0.00048364,2]
[356938765,1743451832178,-889.206,0.00048364,2]
[356938767,1743451832188,-1020.835,0.00048364,2]
[356938782,1743451832326,-1000.0,0.000485,17]
[356938783,1743451832336,-1000.0,0.000485,12]
[356938784,1743451832345,-1000.0,0.000485,15]
[356938785,1743451832354,-1000.0,0.000485,16]
[356938786,1743451832364,-1000.0,0.000485,12]
[356938787,1743451832373,-1000.0,0.000485,9]
[356938788,1743451832382,-1000.0,0.000485,30]
[356938789,1743451832392,-500.0,0.000485,120]
[356938790,1743451832401,-649.0,0.0004852,60]
[356938791,1743451832411,-152.0,0.0004852,4]
[356938792,1743451832419,-2500.0,0.000486,30]
[356938793,1743451832429,-500.0,0.00048794,120]
[356938794,1743451832438,-12803.223,0.0004889,2]
[356938795,1743451832447,-2872.229,0.0004889,2]
[356938796,1743451832457,-2500.0,0.0004889,2]
[356938797,1743451832466,-171.7450213,0.000489,34]
[356938798,1743451832475,-8983.2074,0.000489,2]
[356938799,1743451832485,-304.4703,0.000489,2]
[356938800,1743451832495,-318.402,0.000489,85]
[356938801,1743451832505,-6904.26913631,0.000489,15]
[356938802,1743451832516,-3574.67969219,0.000489,15]
[356938803,1743451832527,-681.0,0.0004899,120]
[356938804,1743451832538,-151.27,0.0004899,120]
[356938805,1743451832557,-492.61596923,0.00048999,120]
[356938806,1743451832569,-168.24796721,0.00048999,120]
[356938807,1743451832579,-1696.0,0.00049,7]
[356938808,1743451832589,-4020.38581207,0.00049,7]
[356938809,1743451832607,-20679.25000001,0.00049,7]
[356938810,1743451832619,-68547.18060215,0.00049,7]
[356938816,1743451839297,-754.69409928,0.00049,5]
[356938817,1743451839455,-8546.33350768,0.00049,5]
[356938818,1743451839465,-74.45624603,0.00049,7]
[356938819,1743451839477,-926.96538,0.00049,7]
[356938820,1743451839509,-437.57837397,0.00049,7]
[356938821,1743451839519,-12.38002523,0.00049,7]
[356938822,1743451839531,-12640.42709105,0.00049,7]
[356938823,1743451839614,-7692.940223,0.00049,7]
[356938824,1743451839669,-840.32669726,0.00049,7]
[356938825,1743451839681,-1091.29085465,0.00049,7]
[356938826,1743451839693,-1571.50376747,0.00049,7]
[356938828,1743451839938,-1041.1660869,0.00049,7]
[356938829,1743451840251,-6780.7692,0.00049,7]
[356938837,1743451842931,-807.46799836,0.00049,7]
[356938838,1743451842986,-261135.643136,0.00049,7]
[356938839,1743451843006,-33857.68408772,0.00049,7]
[356938840,1743451843024,-19133.83179187,0.00049,7]
[356938842,1743451845913,-500.0,0.00049,7]
[356938843,1743451846022,-826.7,0.00049,7]
[356938844,1743452880617,202.0,0.00015,2]
[356938845,1743452889455,24680.57757489,0.0002,20]
[356938848,1743452941345,-526.6748,0.00015,2]
[356938855,1743452951566,-2778.46392834,0.00015,2]
[356938856,1743452953744,-150.82708736,0.00015,2]
[356938857,1743452963347,-150.0,0.00015,2]
[356938864,1743453001886,-171.04350908,0.00014999,2]
[356938871,1743453032179,-128.95649092,0.00014999,2]
[356938872,1743453032194,-150.0,0.00015,2]
[356938873,1743453032207,-829.63219073,0.00015,2]
[356938874,1743453032342,-22653.24373214,0.00015,2]
[356938875,1743453032357,-420.0,0.00016416,2]
[356938876,1743453032372,-150.0,0.00016499,2]
[356938877,1743453032385,-264.0,0.00017966,2]
[356938878,1743453032399,-150.0,0.00019453,2]
[356938879,1743453032414,-4999.999999,0.00024,5]
[356938880,1743453032428,-154.15,0.00026849,2]
[356938881,1743453032442,-150.32303518,0.0003,15]
[356938882,1743453032455,-154.15,0.00042583,2]
[356938883,1743453032472,-389.5,0.00046145,2]
[356938884,1743453032487,-229.9617861,0.00047495,4]
[356938886,1743453032501,-389.5,0.00048409,2]
[356938887,1743453032516,-250.0,0.00048409,120]
[356938888,1743453032530,-1000.0,0.00048459,2]
[356938889,1743453032545,-7280.74908458,0.00048538,2]
[356938898,1743453037931,-215.2322169,0.00047495,4]
[356938899,1743453037941,-855.47609971,0.00048538,2]
[356938900,1743453037952,-2313.95,0.00048538,2]
[356938901,1743453037964,-773.66300001,0.00048538,2]
[356938902,1743453037987,-354.60144798,0.00048538,2]
[356938903,1743453037997,-1631.0,0.00048538,2]
[356938904,1743453038008,-10690.56036772,0.00048538,2]
[356938905,1743453038016,-796.08920025,0.000488,120]
[356938906,1743453038025,-216.0,0.000488,120]
[356938907,1743453038034,-388.11149317,0.00048889,120]
[356938908,1743453038043,-2500.0,0.0004889,2]
[356938909,1743453038052,-258.31934746,0.000489,2]
[356938910,1743453038085,-481.97970045,0.000489,2]
[356938911,1743453038096,-296.32204755,0.000489,2]
[356938912,1743453038107,-2025.44595638,0.000489,2]
[356938913,1743453038119,-11297.65519315,0.000489,2]
[356938914,1743453038130,-8523.35505501,0.000489,2]
[356938915,1743453038139,-196.66185847,0.000489,34]
[356938916,1743453038147,-190.70816087,0.000489,25]
[356938917,1743453038157,-3952.3183028,0.000489,15]
[356938918,1743453038166,-412.50649398,0.000489,21]
[356938919,1743453038174,-9171.01451818,0.000489,15]
[356938920,1743453038183,-151.27,0.0004899,120]
[356938921,1743453038192,-344.83117846,0.00048999,120]
[356938922,1743453038201,-662.45037025,0.00049,5]
[356938923,1743453038210,-118380.2491482,0.00049,5]
[356938925,1743453038218,-1220.0,0.00049,7]
[356938926,1743453038226,-86408.05384158,0.00049,7]
[356938927,1743453038235,-505.58741039,0.00049,7]
[356938935,1743453038486,-666.53437835,0.00049,7]
[356938936,1743453038502,-1250.3974799,0.00049,7]
[356938937,1743453038515,-468.422278,0.00049,7]
[356938938,1743453038527,-355.99999955,0.00049,7]
[356938939,1743453038555,-4875.0,0.00049,7]
[356938940,1743453038572,-11504.09970125,0.00049,7]
[356938941,1743453040094,-668.622,0.00049,7]
[356938942,1743453040106,-2810.13483887,0.00049,7]
[356938944,1743453040151,-905.81429486,0.00049,7]
[356938951,1743453040210,-464.68735391,0.00049,7]
[356938954,1743453040221,-941.68,0.00049,7]
[356938956,1743453040233,-4307.56043718,0.00049,7]
[356938958,1743453040245,-34642.14179151,0.00049,7]
[356938960,1743453040257,-31223.46538244,0.00049,7]
[356938962,1743453040268,-5033.6762,0.00049,7]
[356938965,1743453040284,-488.33004377,0.00049,7]
[356938967,1743453040295,-457.45496847,0.00049,7]
[356938972,1743453040336,-300.06606791,0.00049,7]
[356938975,1743453040348,-310.198,0.00049,7]
[356938976,1743453040360,-232434.7540322,0.00049,7]
[356938977,1743453040394,-357.96587852,0.00049,7]
[356938978,1743453040406,-1726.4050182,0.00049,7]
[356938979,1743453040452,-505.16796202,0.00049,7]
[356938980,1743453040502,-235.67292917,0.00049,7]
[356938982,1743453040516,-32323.12756008,0.00049,7]
[356938983,1743453040527,-3799.77889769,0.00049,7]
[356938984,1743453040538,-942.46523803,0.00049,7]
[356938985,1743453040552,-2821.7,0.00049,7]
[356938996,1743453043089,-1040.0,0.00049,7]
[356938997,1743453043099,-3773.22356449,0.00049,7]
[356938998,1743453043110,-648.89491427,0.00049,7]
[356938999,1743453043146,-14662.35896906,0.00049,7]
[356939000,1743453043155,-6587.54662827,0.00049,7]
[356939001,1743453043204,-194330.59079602,0.00049,7]
[356939002,1743453043215,-2896.04807999,0.00049,7]
[356939003,1743453043226,-17702.02775222,0.00049,7]
[356939004,1743453043237,-293.86565485,0.00049,7]
[356939005,1743453043263,-2104.50563742,0.00049,7]
[356939007,1743453043524,-709.49819818,0.00049,7]
[356939008,1743453046136,-1135.375005,0.00049,7]
[356939009,1743453046243,-365.23000001,0.00049,7]
[356939010,1743453046460,-15667.3,0.00049,7]
[356939026,1743454165604,-153.22,0.00026849,2]
[356939032,1743454232301,-391.15,0.00045933,2]
[356939033,1743454232312,-150.0,0.00046714,2]
[356939034,1743454232323,-150.0,0.00047211,2]
[356939035,1743454232332,-338.14698763,0.00047495,2]
[356939069,1743454238114,-1000.0,0.00045933,2]
[356939070,1743454238127,-3748.41466558,0.00047495,2]
[356939071,1743454238137,-161.4241626,0.00047495,4]
[356939072,1743454238148,-150.0,0.00047565,4]
[356939073,1743454238158,-300.0,0.00047565,5]
[356939074,1743454238168,-642.0,0.00047566,2]
[356939075,1743454238178,-2038.0,0.00047566,2]
[356939076,1743454238188,-311.40433335,0.00047566,2]
[356939077,1743454238203,-476.59566665,0.00047566,2]
[356939078,1743454238212,-1274.0,0.00047566,2]
[356939079,1743454238222,-543.0,0.00047566,2]
[356939080,1743454238231,-908.0,0.00047566,2]
[356939081,1743454238241,-3317.74678386,0.00047566,2]
[356939082,1743454238269,-772.25321614,0.00047566,2]
[356939083,1743454238279,-1432.0,0.00047566,2]
[356939084,1743454238289,-354.79,0.00047889,2]
[356939085,1743454238298,-354.79,0.00047902,2]
[356939086,1743454238308,-354.79,0.00047914,2]
[356939087,1743454238317,-354.79,0.00047927,2]
[356939088,1743454238326,-354.79,0.00047939,2]
[356939089,1743454238336,-354.79,0.00047952,2]
[356939090,1743454238345,-354.79,0.00047965,2]
[356939091,1743454238355,-354.79,0.00047977,2]
[356939092,1743454238364,-232.57,0.00047986,2]
[356939093,1743454238376,-1000.0,0.00048093,2]
[356939094,1743454238386,-157.73,0.00048121,120]
[356939095,1743454238395,-250.0,0.00048166,120]
[356939096,1743454238404,-391.15,0.00048197,2]
[356939097,1743454238413,-209.40437684,0.00048463,2]
[356939098,1743454238423,-10076.77761167,0.00048492,2]
[356939099,1743454238434,-2922.839905,0.00048492,2]
[356939102,1743454238446,-4146.29215,0.00048492,2]
[356939104,1743454238457,-277.57103379,0.00048492,2]
[356939106,1743454238469,-264.41865627,0.00048492,2]
[356939108,1743454238480,-535.26542884,0.00048492,2]
[356939116,1743454238562,-437.25499645,0.00048492,2]
[356939117,1743454238573,-630.6133071,0.00048492,2]
[356939120,1743454240321,-354.79,0.0004799,2]
[356939121,1743454240331,-354.79,0.00048002,2]
[356939122,1743454240341,-354.79,0.00048015,2]
[356939123,1743454240351,-354.79,0.00048028,2]
[356939124,1743454240361,-354.79,0.0004804,2]
[356939125,1743454240377,-354.79,0.00048053,2]
[356939126,1743454240388,-354.79,0.00048065,2]
[356939127,1743454240398,-354.79,0.00048078,2]
[356939128,1743454240411,-632.21647137,0.00048492,2]
[356939129,1743454240424,-802.70260855,0.00048492,2]
[356939130,1743454240436,-1049.4999999,0.00048492,2]
[356939131,1743454240448,-2124.54783106,0.00048492,2]
[356939132,1743454240459,-153.95816816,0.0004851,2]
[356939133,1743454240469,-1100.0,0.000488,17]
[356939134,1743454240480,-934.5617,0.000489,2]
[356939135,1743454240492,-193.29322734,0.000489,34]
[356939136,1743454240502,-368.303,0.000489,85]
[356939137,1743454240513,-408.926686,0.000489,21]
[356939138,1743454240522,-153.22399,0.000489,85]
[356939139,1743454240532,-2300.0,0.000489,17]
[356939140,1743454240542,-8253.91306638,0.000489,15]
[356939141,1743454240553,-329.71,0.00048926,2]
[356939142,1743454240564,-2306.19992487,0.0004899,4]
[356939143,1743454240574,-9993.53300777,0.0004899,4]
[356939144,1743454240585,-151.58,0.0004899,120]
[356939145,1743454240595,-241.38182492,0.00048999,120]
[356939146,1743454240605,-213.761262,0.00048999,120]
[356939147,1743454240615,-300.0,0.00048999,30]
[356939148,1743454240630,-331.22518512,0.00049,5]
[356939149,1743454240640,-59190.1245741,0.00049,5]
[356939150,1743454240650,-727.0,0.00049,7]
[356939151,1743454240660,-8298.80751299,0.00049,7]
[356939152,1743454240691,-150.0,0.0004884,7]
[356939153,1743454240701,-2140.7,0.00049,7]
[356939154,1743454240729,-354.79,0.00048091,2]
[356939155,1743454240739,-150.0,0.00048937,7]
[356939156,1743454240748,-78452.9434256,0.00049,7]
[356939157,1743454240760,-558.75599168,0.00049,7]
[356939158,1743454240783,-150.0,0.00048869,7]
[356939159,1743454240792,-3128.76496843,0.00049,7]
[356939160,1743454240816,-274.46244612,0.00048918,14]
[356939161,1743454240826,-150.0,0.00048921,7]
[356939162,1743454240836,-487306.17311369,0.00049,7]
[356939163,1743454240852,-375.20567499,0.00049,7]
[356939164,1743454240861,-9083.0,0.00049,2]
[356939165,1743454240872,-37937.50158854,0.00049,30]
[356939166,1743454240882,-162.62380164,0.00049,30]
[356939167,1743454240891,-29496.99338934,0.00049,3]
[356939169,1743454240915,-150.0,0.00048788,7]
[356939171,1743454240926,-377.0792815,0.00049,3]
[356939173,1743454240939,-725.91676573,0.00049,3]
[356939175,1743454240950,-493.27921348,0.00049,3]
[356939176,1743454240962,-944.63503,0.00049,3]
[356939177,1743454240972,-5863.24615774,0.00049,3]
[356939178,1743454241004,-354.79,0.00048103,2]
[356939179,1743454241013,-150.0,0.00048795,7]
[356939180,1743454241023,-2271.15000765,0.00049,3]
[356939181,1743454241050,-150.0,0.0004882,7]
[356939182,1743454241060,-150.0,0.0004891,7]
[356939183,1743454241070,-2321.53537477,0.00049,3]
[356939184,1743454241081,-2187.7,0.00049,3]
[356939196,1743454243544,-354.79,0.00048116,2]
[356939197,1743454243554,-354.79,0.00048128,2]
[356939198,1743454243563,-150.0,0.00048737,7]